Cogmind - Beta 11.1 @@@ ROGUE MODE // 2022.07.06 @ 19:48:28 Player: Artem Result: Destroyed by H-61 Shepherd with Heavy Assault Cannon Performance ------------- Evolutions (2) 1000 Regions Visited (4) 800 Robots Destroyed (33) 165 Value Destroyed (840) 840 Prototype IDs (7) 140 Alien Tech Used (0) 0 Bonus (228) 228 TOTAL SCORE: 3173 Bonus ------- High Alert Combat Kills 135 Follower Combat Kills 93 Cogmind --------- Core Integrity 0/550 Matter 300/300 Energy 99/100 System Corruption 0% Temperature Cool (0) Movement Core (200) Ox3 Location -8/Materials Parts ------- > --- POWER (1) -------- (None) > --- PROPULSION (3) --- (None) > --- UTILITY (5) ------ Medium Storage Unit Hacking Suite > --- WEAPON (2) ------- Blade Saw > --- INVENTORY (10) --- Nuclear Core Wheel Wheel Heat Sink Compact Battery (200) Flak Cannon Flak Cannon Missile Launcher Peak State ------------ > --- POWER ------------ Light Deuterium Engine > --- PROPULSION ------- Improved Hover Unit Flight Unit Flight Unit > --- UTILITY ---------- Medium Storage Unit Actuator Array Hacking Suite System Shield > --- WEAPON ----------- Katana Axe > --- INVENTORY -------- Nuclear Core Wheel Wheel Heat Sink Compact Battery Flak Cannon Flak Cannon Missile Launcher Blade Saw [Rating: 25] Favorites ----------- Power Ion Engine Engine Ion Engine Power Core Light Nuclear Core Propulsion Aluminum Leg Leg Aluminum Leg Wheel Wheel Hover Unit Improved Hover Unit Flight Unit Flight Unit Utility Small Storage Unit Device Improved Terrain Scanner Storage Small Storage Unit Processor Terrain Scan Processor Hackware Hacking Suite Protection Medium Armor Plating Weapon Grenade Launcher Energy Gun Small Laser Energy Cannon Light EM Pulse Cannon Ballistic Gun Makeshift Shrapnel Gun Ballistic Cannon Flak Cannon Launcher Grenade Launcher Slashing Weapon Axe Special Melee Weapon Datajack Build | -11 -10 -10 -9 -8 ------- Run | Scr Mat Min Mat Mat Slots Evolved 4 | . . . 2 2 Power . | . . . . . Propulsion 1 | . . . . 1 Utility 3 | . . . 2 1 Weapon . | . . . . . Parts Attached 57 | 9 . 3 18 27 Power 8 | 2 . 1 1 4 Engine 5 | 2 . 1 1 1 Core 3 | . . . . 3 Reactor . | . . . . . Propulsion 16 | 2 . . 5 9 Treads . | . . . . . Leg 6 | 2 . . 4 . Wheel 6 | . . . . 6 Hover 1 | . . . . 1 Flight 3 | . . . 1 2 Utility 17 | 2 . . 7 8 Device 9 | 1 . . 4 4 Storage 2 | 1 . . 1 . Processor 2 | . . . 1 1 Hackware 2 | . . . . 2 Protection 2 | . . . 1 1 Artifact . | . . . . . Weapon 16 | 3 . 2 5 6 Energy Gun 1 | 1 . . . . Energy Cannon 5 | . . . 5 . Ballistic Gun 3 | 2 . 1 . . Ballistic Cannon 2 | . . . . 2 Launcher 1 | . . 1 . . Special Weapon . | . . . . . Impact Weapon . | . . . . . Slashing Weapon 3 | . . . . 3 Piercing Weapon . | . . . . . Special Melee Weapon 1 | . . . . 1 Unidentified Prototypes 1 | . . . 1 . Parts Lost 17 | . . . 4 13 Power 3 | . . . 1 2 Propulsion 5 | . . . . 5 Utility 5 | . . . 2 3 Weapon 4 | . . . 1 3 Highest Loss Streak 9 | . . . 2 9 To Critical Strikes . | . . . . . Average Slot Usage (%) 90 | . 100 100 93 82 Engine 9 | . 14 14 10 4 Core 1 | . . . . 3 Leg 16 | . 28 28 22 2 Wheel 6 | . . . . 17 Device 19 | . 14 14 23 16 Storage 10 | . 14 14 11 9 Hackware 3 | . . . . 9 Protection 2 | . . . 3 1 Energy Cannon 2 | . . . 5 . Ballistic Gun 6 | . 28 14 8 . Launcher 5 | . . 14 7 . Slashing Weapon 3 | . . . . 9 Special Melee Weapon 1 | . . . . 5 Naked Turns . | . . . . . Heaviest Build 30 | 15 15 16 26 30 Greatest Support 30 | 20 20 20 25 30 Greatest Overweight (x) 8 | 3 . . 1 8 Average Overweight (x) . | . . . . . Largest Inventory Capacity 10 | 8 8 8 10 10 Average Capacity 8 | 7 8 8 8 10 Most Carried 10 | 2 3 6 7 10 Average Carried 5 | 1 2 4 5 6 Final Capacity 10 | 8 8 8 10 10 Final Carried 8 | 2 3 6 3 8 Class Distribution -------------------- 74% | Mutant 12% | Scavenger-Mutant 12% | Hacker-Mutant Dominant Class ---------------- Mutant | -10/Materials Mutant | -10/Mines Mutant | -9/Materials Scavenger-Mutant | -8/Materials Resources | -11 -10 -10 -9 -8 ----------- Run | Scr Mat Min Mat Mat Matter Collected 1064 | 264 . 121 262 417 Remotely 60 | . . . 60 . Salvage Created 991 | 85 25 63 311 507 Parts 65 | 6 3 2 19 35 Haulers Intercepted 1 | . . . . 1 Recyclers Shooed 1 | . . . . 1 Parts Field Recycled . | . . . . . Retrieved Matter . | . . . . . Parts Self-Destructed . | . . . . . Prevented . | . . . . . Kills | -11 -10 -10 -9 -8 ------- Run | Scr Mat Min Mat Mat Combat Hostiles Destroyed 17 | . . 2 9 6 Melee 6 | . . . . 6 Guns 8 | . . 1 7 . Cannons 1 | . . . 1 . AOE 2 | . . 1 1 . Classes Destroyed 10 | 2 1 1 3 3 Worker 2 | . . . 1 1 Builder 4 | . . . 1 3 Tunneler 2 | 1 . . . 1 Hauler 1 | . . . . 1 Recycler 2 | 1 . . . 1 Watcher 5 | . 1 . 3 1 Swarmer 2 | . . . . 2 Grunt 9 | . . 2 4 3 Sentry 5 | . . . 5 . Hunter 1 | . . . . 1 Best Kill Streak 4 | 2 1 2 4 4 Combat Bots Only 3 | . . 2 3 2 Max Kills in Single Turn 2 | 1 1 2 1 1 Gunslinging . | . . . . . Exploded 1 | . . 1 1 . Melee 1 | . . . . 1 Uniques/NPCs Destroyed . | . . . . . Combat | -11 -10 -10 -9 -8 -------- Run | Scr Mat Min Mat Mat Damage Taken 1972 | . . 65 723 1184 Core 786 | . . 10 187 589 Absorbed by Shields . | . . . . . Core Remaining (%) 83 | 100 . 96 53 . Volleys Fired 38 | 4 3 2 29 . Largest 2 | 2 2 2 2 . Hottest 112 | 40 40 50 112 . Shots Fired 71 | 8 6 4 53 . Gun 41 | 8 6 2 25 . Cannon 8 | . . . 8 . Launcher 22 | . . 2 20 . Special . | . . . . . Kinetic 41 | 8 6 2 25 . Thermal . | . . . . . Explosive 22 | . . 2 20 . Electromagnetic 8 | . . . 8 . Robot Hit Streak 8 | 3 1 3 8 . Robot Miss Streak 5 | 1 2 1 5 . Penetration Max . | . . . . . Secondary Targets . | . . . . . Shots Hit Robots 83 | 6 2 3 27 45 Core Hits 49 | 3 1 4 28 13 Critical Kills . | . . . . . Critical Parts Destroyed . | . . . . . Critical Strikes 2 | . . . . 2 Sever 2 | . . . . 2 Melee Attacks 54 | . . . . 54 Impact . | . . . . . Slashing 43 | . . . . 43 Piercing . | . . . . . Sneak Attacks 18 | . . . . 18 Combat Hostiles . | . . . . . Follow-up Attacks 2 | . . . . 2 Damage Inflicted 2606 | 70 22 130 1080 1304 Guns 518 | 70 22 25 401 . Cannons 96 | . . . 96 . Explosions 668 | . . 102 566 . Melee 1304 | . . . . 1304 Ramming 20 | . . 3 17 . Kinetic 518 | 70 22 25 401 . Thermal 110 | . . . 110 . Explosive 558 | . . 102 456 . Electromagnetic 96 | . . . 96 . Impact . | . . . . . Slashing 1304 | . . . . 1304 Piercing . | . . . . . Highest Corruption . | . . . . . Average Corruption . | . . . . . Corruption Purged . | . . . . . Corruption Blocked . | . . . . . Overload Shots . | . . . . . Overflow Damage 261 | . . . 112 149 Projectiles . | . . . . . Explosions 112 | . . . 112 . Melee 149 | . . . . 149 Knockbacks . | . . . . . Impact . | . . . . . Kinetic . | . . . . . Secondary . | . . . . . Self-Inflicted Damage 219 | . . . 219 . Shots 5 | . . . 5 . Rammed . | . . . . . Targets Rammed 8 | . . 1 7 . Kicked 8 | . . 1 7 . Crushed . | . . . . . Highest Temperature 93 | . . 18 93 . Average Temperature 22 | . . 11 23 . Received Heat Transfer 408 | . . 36 192 180 Siege Activations . | . . . . . Robots Corrupted . | . . . . . Combat Hostiles . | . . . . . Parts Fried . | . . . . . Impact Corruptions . | . . . . . Robots Melted . | . . . . . Combat Hostiles . | . . . . . Parts Melted . | . . . . . Heat Transferred 100 | . . . 100 . Parts Sabotaged . | . . . . . Parts Stolen . | . . . . . Parts Stripped . | . . . . . Power Chain Reactions 1 | . . . 1 . Missiles Intercepted . | . . . . . Alert | -11 -10 -10 -9 -8 ------- Run | Scr Mat Min Mat Mat Peak Influence 893 | 10 27 135 893 616 Initial 353 | . 6 10 52 353 Average 373 | 2 14 104 453 448 Maximum Alert Level 3 | . . . 3 2 Low Security (%) 30 | 100 100 100 21 . Level 1 29 | . . . 31 44 Level 2 26 | . . . 16 55 Level 3 13 | . . . 30 . Level 4 . | . . . . . Level 5 . | . . . . . High Security . | . . . . . Max Security . | . . . . . Squads Dispatched 7 | . . . 4 3 Investigation . | . . . . . Extermination . | . . . . . Reinforcement 6 | . . . 3 3 Assault 1 | . . . 1 . Garrison . | . . . . . Intercept . | . . . . . Searches Triggered . | . . . . . Construction Impeded 2 | . . . 2 . Haulers Reinforced . | . . . . . Active Scanning Responses . | . . . . . Cargo Convoy Interrupts . | . . . . . Stealth | -11 -10 -10 -9 -8 --------- Run | Scr Mat Min Mat Mat Distress Signals 4 | . 1 . 2 1 Communications Jammed . | . . . . . Distress Signals . | . . . . . Times Spotted 58 | . 3 4 26 25 Peak Tracking Total 7 | . 2 2 4 7 Tactical Retreats 14 | . . . 5 9 Traps | -11 -10 -10 -9 -8 ------- Run | Scr Mat Min Mat Mat Traps Triggered . | . . . . . Indirectly . | . . . . . Trap Hack Attempts . | . . . . . Triggered . | . . . . . Disarmed 1 | . . . . 1 Reprogrammed . | . . . . . Reused . | . . . . . Traps Extracted . | . . . . . Installed . | . . . . . Triggered . | . . . . . Machines | -11 -10 -10 -9 -8 ---------- Run | Scr Mat Min Mat Mat Machines Disabled 3 | . . . 3 . Max in Single Turn 2 | . . . 2 . Machines Sabotaged . | . . . . . Garrisons Compromised . | . . . . . Overloaded Fab Kills . | . . . . . Hacking | -11 -10 -10 -9 -8 --------- Run | Scr Mat Min Mat Mat Machines Accessed 11 | . 2 . 5 4 Terminals 8 | . 2 . 2 4 Fabricators . | . . . . . Repair Stations 1 | . . . 1 . Recycling Units 1 | . . . 1 . Scanalyzers 1 | . . . 1 . Garrison Access . | . . . . . Total Hacks 34 | . 6 . 13 15 Successful 23 | . 5 . 9 9 Failed 11 | . 1 . 4 6 Catastrophic 1 | . . . . 1 Database Lockouts . | . . . . . Manual . | . . . . . Terminals 29 | . 6 . 8 15 Fabricators . | . . . . . Repair Stations 1 | . . . 1 . Recycling Units 2 | . . . 2 . Scanalyzers 2 | . . . 2 . Garrison Access . | . . . . . Terminal Hacks 19 | . 5 . 5 9 Record 6 | . 2 . 2 2 Robot Analysis 1 | . . . . 1 Prototype ID Bank 3 | . 1 . 1 1 Alert Level 1 | . . . . 1 Locate Traps 3 | . . . . 3 Disarm Traps 1 | . . . . 1 Dispatch Records 1 | . . . 1 . Surveillance Status 1 | . 1 . . . Registered Components 1 | . 1 . . . Registered Prototypes 1 | . . . 1 . Fabricator Hacks . | . . . . . Repair Station Hacks . | . . . . . Recycling Unit Hacks 2 | . . . 2 . Report Inventory 1 | . . . 1 . Retrieve Components 1 | . . . 1 . Scanalyzer 2 | . . . 2 . Insert Component 1 | . . . 1 . Analyze 1 | . . . 1 . Garrison Access Hacks . | . . . . . Unauthorized Hacks . | . . . . . Terminals . | . . . . . Fabricators . | . . . . . Repair Stations . | . . . . . Recycling Units . | . . . . . Scanalyzers . | . . . . . Garrison Access . | . . . . . Data Cores Recovered . | . . . . . Used . | . . . . . Hacking Detections 8 | . 1 . 4 3 Full Trace Events . | . . . . . Feedback Events . | . . . . . Feedback Blocked . | . . . . . Robot Schematics Acquired . | . . . . . Robots Built . | . . . . . Authchips . | . . . . . Time . | . . . . . Total Robot Build Rating . | . . . . . Part Schematics Acquired 1 | . . . 1 . Parts Built . | . . . . . Authchips . | . . . . . Time . | . . . . . Total Part Build Rating . | . . . . . Parts Repaired . | . . . . . Time . | . . . . . Parts Recycled . | . . . . . Recycled Matter . | . . . . . Retrieved Matter . | . . . . . Retrieved Components 2 | . . . 2 . Parts Scanalyzed 1 | . . . 1 . Part Schematics Acquired 1 | . . . 1 . Parts Damaged . | . . . . . Bothacking | -11 -10 -10 -9 -8 ------------ Run | Scr Mat Min Mat Mat Used RIF Installer . | . . . . . Robots Hacked 5 | . . . . 5 Non-combat 4 | . . . . 4 Combat 1 | . . . . 1 Robot Hacks Applied 6 | . . . . 6 parse_system 2 | . . . . 2 no_distress 4 | . . . . 4 Relay Couplers Released . | . . . . . Fabnet Peak Effective % . | . . . . . Robots Rewired . | . . . . . Allies Hacked . | . . . . . Hacks Repelled . | . . . . . Allies | -11 -10 -10 -9 -8 -------- Run | Scr Mat Min Mat Mat Total Allies 2 | . . 2 . . Largest Group 2 | . . 2 1 . Highest-Rated Group 41 | . . 41 31 . Highest-Rated Ally 31 | . . 31 31 . Total Orders . | . . . . . Ally Attacks 19 | . . 9 10 . Total Damage 309 | . . 166 143 . Kills 3 | . . 2 1 . Allies Corrupted . | . . . . . Allies Melted . | . . . . . Intel | -11 -10 -10 -9 -8 ------- Run | Scr Mat Min Mat Mat Robot Analysis Total 1 | . . . . 1 Derelict Logs Recovered . | . . . . . Drone Launches . | . . . . . Drone Recoveries . | . . . . . Exploration | -11 -10 -10 -9 -8 ------------- Run | Scr Mat Min Mat Mat Turns Passed 2141 | 84 75 279 974 729 Spaces Moved 1277 | 47 55 188 547 440 Core 20 | 13 . . . 7 Treads . | . . . . . Legs 910 | 34 55 188 547 86 Wheels 347 | . . . . 347 Hover . | . . . . . Flight . | . . . . . Fastest Speed 50 | 50 120 120 120 80 Average Speed 123 | 122 120 120 140 105 Slowest Speed 450 | 200 120 120 190 450 Overloaded Moves . | . . . . . Propulsion Burnouts . | . . . . . Robots Hopped . | . . . . . Cave-ins Triggered . | . . . . . Exploration Rate (%) 30 | 5 16 63 37 33 Regions Visited 4 Branch Regions 1 Pre-discovered Areas . | . . . . . Known Exits Taken . | . . . . . Unknown Exits Taken 4 | 1 1 1 1 . Scrap Searched . | . . . . . Spaces Dug . | . . . . . Terrain Destroyed 224 | . . 16 208 . Melee . | . . . . . Projectile . | . . . . . AOE 224 | . . 16 208 . Terrain Rammed . | . . . . . Walls Destroyed . | . . . . . Machines Disabled . | . . . . . Actions | -11 -10 -10 -9 -8 --------- Run | Scr Mat Min Mat Mat Total 1679 | 60 58 235 700 626 Wait 192 | . . 38 74 80 Move 1273 | 46 54 187 546 440 Hop . | . . . . . Pick Up 26 | 1 1 2 10 12 Fast Attach 22 | 7 . . 6 9 Attach 12 | . . . 5 7 Detach 5 | . . . 2 3 Swap 23 | 2 . 3 7 11 Drop 26 | . . . 14 12 Fire 38 | 4 3 2 29 . Melee 52 | . . . . 52 Ram . | . . . . . Kick 8 | . . 1 7 . Crush . | . . . . . Escape Stasis . | . . . . . Rewire 2 | . . 2 . . Trap . | . . . . . Miscellaneous . | . . . . . Route ------- -11/Scrapyard -10/Materials -10/Mines -9/Materials -8/Materials History --------- Turn | Location | Event 17 | -11/Scrapyard | Discovered new exit (range 13) 85 | -11/Scrapyard | Entered Materials 145 | -10/Materials | Discovered new exit (range 13) 160 | -10/Materials | Entered Mines 197 | -10/Mines | A weapon hastily lodged in a ceiling crevice suddenly fell to the ground 316 | -10/Mines | Build established: Mutant 385 | -10/Mines | Discovered new exit (range 7) 439 | -10/Mines | Entered Materials 439 | -9/Materials | Accompanied by 1 ally 439 | -9/Materials | Evolved 2 slots: Utility x2 444 | -9/Materials | Led the pair of lost Derelicts to an unsafe place 1239 | -9/Materials | First assault squad dispatched 1365 | -9/Materials | Discovered new exit (range 12) 1413 | -9/Materials | Entered another Materials area 1413 | -8/Materials | Evolved 2 slots: Propulsion x1, Utility x1 2108 | -8/Materials | Core integrity fell below 50% 2119 | -8/Materials | Core integrity fell below 20% 2142 | -8/Materials | Destroyed by H-61 Shepherd with Heavy Assault Cannon Last Messages --------------- 02103_ K-01 Serf collects debris. 02105_ Slug penetrates Door. 02107_ K-01 Serf collects debris. 02112_ Flight Unit destroyed. 02112_ System Shield destroyed. 02112_ Critical hit (Blast). 02113_ Axe follow-up attack on H-61 Shepherd. 02116_ Penetrated by Slug. 02116_ Axe destroyed. 02117_ K-01 Serf collects debris. 02120_ Penetrated by Slug. 02120_ Knocked back. 02128_ Actuator Array destroyed. 02128_ Critical hit (Blast). 02128_ Knocked back. 02131_ C-17 Slicer knocked back. 02132_ C-17 Slicer destroyed. 02137_ K-01 Serf collects debris. 02137_ Knocked back. 02140_ K-01 Serf collects debris. Map ----- +----------------------------------------------------+ | ???????????????#+####### ########??????# #???? | | ?????????????? #??????# #???? | | ?????????????? ######## #? ?? | | ?????????????? #? ?? | | ?????????????????????####+####+########### #???? | | ?????????????????????????????#% #??####+###### | | ?????????????????????????????# % #??# # | | ?????????????????????????????# """"%#??# # | | ?????????????????????????????# """" #??#! """ # | | ?????????????????????????????# """" #??# """"" # | | ?????????????????????????????# #??# """"" / | | ?????????????????????????????##+#####??# """"" # | | ??????????????????????????????# #??????# """ # | | ??????????????????????????????# #??????#! # | | ??????????????????????????????# #????#?########### | | ??????????????????????????????# #????????????###?? | | ??????????????????????????????# #??????????#??##?? | | ???????????????????############ ##########???????? | | ???????????????????# ^ ^ ## ## #??####### | | ???????????????????# ^ # # #??# | | ???????????????????# ^ ^^ + + ! #??# | | ???????????????????# # # !! #??# ! | | ???????????????????#########"## ## !! #??# | | ????????????????????# % ;#% ## #??# | | ????????????????????#* !!!H#]=! ############ """ | | ????????????????????# !!@#" ! + """ | | ????????????????????# %##%[############## """ | | ????????????????????# ##=##?????#???#??# | | ???????????????????# =* k # #?????????????####### | | ???????????????????# %""" # #???????????????????? | | ???????????????????# ="""= # ###########?#????? "? | | ?????????###???????## """% #%# """ #?????????" | | ????????? ???????# ## # """ #?????????? | | ?????????? ??????+ ## # """ #?????? ??? | | ??????????""" ?????# # # #?????? ??? | | ????????? "Y ############ + "#?????#???? | | ???????# """ # T#??#??????# | | ???????+ # "##?????? ?? | | ???????# """ # #?????????? | | ????????# ######## """ ###########?????????? | | ?????????????????## """ "#??????????????????? | | ??????????????????# T#?????????????#? ??? | | ??????????????????# "#??????????????????? | | ??????????????????#"" ##??????????????????? | | ??????????????????#"T #??????????????????? | | ??????????????????#"" #??????????????????? | | ??????????????????# +??????????????????? | | ??????????????????+ #??????????????????? | | ??????????????????# ######+###??????????????????? | | ??????????????????# #???????????????????????????? | +----------------------------------------------------+ Best States ------------- Heat Dissipation 41 Energy Generation 15 Energy Capacity 250 Matter Stores 300 Matter Capacity 300 Sight Range 18 Terrain Scan Range 16 Terrain Scan Density 85 ECM Strength 1 Armor Coverage 225 Evasion (%) 55 Offensive Hacking 10 Defensive Hacking 10 Trap Extractor Capacity 4 Item Schematics ----------------- Rocket Launcher | -9/Materials | Scanalyzed Robot Schematics ------------------ None Fabricated ------------ Nothing Alien Tech Used ----------------- None Achievements -------------- None Challenges ------------ None Game ------ Seed ExperimentalHeartRifle Manual? 0 Play Time 00:25:39 Cumulative 10.6 hours Start 2022.07.06 @ 19:24:00 End 2022.07.06 @ 19:48:28 Sessions 1 Manual Loads 0 Difficulty Rogue Special Mode None Game No. 26 Rogue 26 Adventurer 0 Explorer 0 Win Type - Total 0 Types 0/0/0/0/0/0/0/0/0 Lore% 14 Gallery% 22 Achievement% 14 Wizard Run 0 Options --------- ASCII 0 Keyboard 0 Movement Numpad Keybinds 0 Fullscreen 2 Font 24/Proggy Map View 76x50 Tactical HUD 1 Map Filters NONE Filters NONE Steam 1 RUN: 1ce9f829-ea77-48b8-a5b6-9ab54a34650b